fUSD/lending_fUSD_20250206
["ID","MTS","AMOUNT","RATE_DAILY","PERIOD"]
[351995373,1738871444224,-10175.82063198,0.00016858,2]
[351995375,1738871444234,-6064.65896671,0.00016877,2]
[351995377,1738871444243,-505.04367806,0.00016885,2]
[351995379,1738871444254,-150.0,0.00016888,2]
[351995381,1738871444263,-1000.0,0.0001689,2]
[351995383,1738871444273,-1400.0,0.000169,6]
[351995385,1738871444282,-200.0,0.00016908,2]
[351995387,1738871444296,-200.0,0.00016908,2]
[351995389,1738871444305,-200.0,0.00016908,2]
[351995391,1738871444315,-200.0,0.00016908,2]
[351995393,1738871444325,-1000.0,0.00016916,2]
[351995395,1738871444335,-150.0,0.00016975,2]
[351995397,1738871444345,-500.0,0.00016984,2]
[351995399,1738871444355,-500.0,0.00016984,2]
[351995401,1738871444364,-483.34373978,0.00016984,2]
[351995403,1738871444374,-567.75,0.00016984,2]
[351995405,1738871444384,-946.55,0.00016984,2]
[351995407,1738871444393,-892.94,0.00016984,2]
[351995409,1738871444403,-1707.86,0.00016984,2]
[351995411,1738871444413,-686.31,0.00016984,2]
[351995413,1738871444422,-813.88,0.00016984,2]
[351995415,1738871444432,-722.64,0.00016984,2]
[351995418,1738871444442,-843.95,0.00016984,2]
[351995419,1738871444451,-885.93,0.00016984,2]
[351995420,1738871444461,-542.93,0.00016984,2]
[351995421,1738871444470,-1811.3,0.00016984,2]
[351995422,1738871444480,-559.8,0.00016984,2]
[351995423,1738871444490,-751.59,0.00016984,2]
[351995424,1738871444500,-500.0,0.00016984,2]
[351995425,1738871444510,-2069.38,0.00016984,2]
[351995426,1738871444521,-500.0,0.00016984,2]
[351995427,1738871444532,-507.58,0.00016984,2]
[351995428,1738871444542,-500.0,0.00016984,2]
[351995429,1738871444552,-638.29,0.00016984,2]
[351995430,1738871444562,-152.491537,0.00016984,2]
[351995432,1738871444572,-500.0,0.00016984,2]
[351995434,1738871444582,-536.9,0.00016984,2]
[351995436,1738871444592,-500.0,0.00016984,2]
[351995438,1738871444602,-787.22,0.00016984,2]
[351995440,1738871444612,-500.0,0.00016984,2]
[351995442,1738871444622,-677.27,0.00016984,2]
[351995444,1738871444631,-518.34,0.00016984,2]
[351995446,1738871444642,-500.0,0.00016984,2]
[351995448,1738871444651,-744.12,0.00016984,2]
[351995450,1738871444661,-985.22,0.00016984,2]
[351995452,1738871444670,-525.23,0.00016984,2]
[351995454,1738871444679,-500.0,0.00016984,2]
[351995456,1738871444688,-652.99,0.00016984,2]
[351995458,1738871444699,-580.37,0.00016984,2]
[351995460,1738871444708,-683.44,0.00016984,2]
[351995462,1738871444718,-500.0,0.00016984,2]
[351995464,1738871444728,-712.71,0.00016984,2]
[351995466,1738871444737,-828.84,0.00016984,2]
[351995468,1738871444747,-1284.61,0.00016984,2]
[351995470,1738871444757,-629.85,0.00016984,2]
[351995472,1738871444766,-500.0,0.00016984,2]
[351995474,1738871444776,-500.0,0.00016984,2]
[351995476,1738871444786,-1250.61,0.00016984,2]
[351995478,1738871444796,-1014.71,0.00016984,2]
[351995480,1738871444805,-547.28,0.00016984,2]
[351995482,1738871444815,-2319.18,0.00016984,2]
[351995484,1738871444824,-500.0,0.00016984,2]
[351995486,1738871444834,-994.72,0.00016984,2]
[351995488,1738871444844,-634.47,0.00016984,2]
[351995490,1738871444854,-1145.93,0.00016984,2]
[351995492,1738871444864,-646.28,0.00016984,2]
[351995494,1738871444874,-1574.98,0.00016984,2]
[351995496,1738871444883,-500.0,0.00016984,2]
[351995498,1738871444894,-500.0,0.00016984,2]
[351995500,1738871444904,-509.75,0.00016984,2]
[351995502,1738871444915,-691.85,0.00016984,2]
[351995504,1738871444924,-764.17,0.00016984,2]
[351995506,1738871444934,-1054.38,0.00016984,2]
[351995508,1738871444944,-506.38,0.00016984,2]
[351995510,1738871444953,-500.0,0.00016984,2]
[351995512,1738871444963,-500.0,0.00016984,2]
[351995514,1738871444973,-871.15,0.00016984,2]
[351995516,1738871444983,-500.0,0.00016984,2]
[351995518,1738871444993,-1046.95,0.00016984,2]
[351995520,1738871445003,-617.36,0.00016984,2]
[351995522,1738871445014,-532.46,0.00016984,2]
[351995524,1738871445024,-835.93,0.00016984,2]
[351995526,1738871445035,-500.0,0.00016984,2]
[351995528,1738871445044,-1341.3,0.00016984,2]
[351995530,1738871445054,-604.72,0.00016984,2]
[351995532,1738871445063,-500.0,0.00016984,2]
[351995535,1738871445073,-500.0,0.00016984,2]
[351995536,1738871445083,-621.34,0.00016984,2]
[351995538,1738871445092,-500.0,0.00016984,2]
[351995541,1738871445103,-500.0,0.00016984,2]
[351995543,1738871445112,-343.80876842,0.00016984,2]
[351995544,1738871445122,-3318.52634483,0.00016985,2]
[351995549,1738871445153,-500.0,0.00016847,2]
[351995551,1738871445162,-506782.33982879,0.00016985,2]
[351995553,1738871445173,-4287.90357461,0.00016985,2]
[351995556,1738871445197,-150.0,0.00016704,2]
[351995558,1738871445210,-858.495664,0.00016985,2]
[351995560,1738871445222,-9605.0,0.00016985,2]
[351995563,1738871445233,-542.23852826,0.00016985,2]
[351995630,1738871445864,-150.0,0.00015444,2]
[351995633,1738871445875,-150.0,0.00015478,2]
[351995636,1738871445884,-150.0,0.00015584,2]
[351995641,1738871445895,-150.0,0.00015726,2]
[351995645,1738871445905,-150.0,0.00016001,2]
[351995647,1738871445915,-150.0,0.00016044,2]
[351995650,1738871445925,-150.0,0.00016067,2]
[351995654,1738871445935,-150.0,0.00016081,2]
[351995656,1738871445944,-150.0,0.00016249,2]
[351995660,1738871445954,-150.0,0.00016282,2]
[351995663,1738871445964,-150.0,0.00016393,2]
[351995666,1738871445973,-150.0,0.00016523,2]
[351995668,1738871445983,-150.0,0.00016557,2]
[351995671,1738871445991,-316.84,0.00016573,2]
[351995675,1738871446000,-500.0,0.00016573,2]
[351995677,1738871446010,-500.0,0.00016574,2]
[351995680,1738871446020,-150.0,0.00016691,2]
[351995683,1738871446029,-150.0,0.00016743,2]
[351995685,1738871446041,-500.0,0.00016984,2]
[351995688,1738871446050,-1786.54940005,0.00016985,2]
[351995690,1738871446069,-1560.90268619,0.00016985,2]
[351995692,1738871446081,-19300.74953765,0.00016985,2]
[351995694,1738871446092,-20590.82994158,0.00016985,2]
[351995697,1738871446103,-6297.02998929,0.00016985,2]
[351995702,1738871446122,-500.0,0.00016574,2]
[351995704,1738871446131,-964.32013818,0.00016985,2]
[351995708,1738871446149,-614.1916537,0.00016985,2]
[351995711,1738871446160,-48000.0,0.00016985,2]
[351995714,1738871446177,-1131.86393258,0.00016985,2]
[351995728,1738871446342,-308.38480597,0.00016985,2]
[351995730,1738871446352,-258.95046084,0.00016985,2]
[351995731,1738871446363,-710801.43337611,0.00016985,2]
[351995733,1738871446375,-500.0,0.00016985,2]
[351995735,1738871446390,-1009.05393255,0.00016985,2]
[351995737,1738871446401,-468.705,0.00016985,2]
[351995739,1738871446412,-39468.9011623,0.00016985,2]
[351995741,1738871446423,-2450.16000001,0.00016985,2]
[351995743,1738871446441,-32990.00000002,0.00016985,2]
[351995745,1738871446452,-10610.6,0.00016985,2]
[351995747,1738871446463,-1313.0674041,0.00016985,2]
[351995749,1738871446475,-527.21886762,0.00016985,2]
[351995768,1738871446675,-257.57793433,0.00016573,2]
[351995769,1738871446686,-243.66455274,0.00016573,2]
[351995771,1738871446696,-32610.80544726,0.00016985,2]
[351995773,1738871446708,-60000.0,0.00016985,2]
[351995783,1738871446808,-765.572688,0.00016985,2]
[351995786,1738871446829,-530.64,0.00016574,2]
[351995788,1738871446837,-930.38035364,0.00016985,2]
[351995790,1738871446848,-480.630005,0.00016985,2]
[351995799,1738871446948,-505.22094951,0.00016985,2]
[351995828,1738871447277,-500.0,0.00016572,2]
[351995830,1738871447290,-500.0,0.00016572,2]
[351995832,1738871447300,-211.93,0.00016573,2]
[351995834,1738871447310,-500.0,0.00016574,2]
[351995836,1738871447319,-500.0,0.00016709,2]
[351995838,1738871447329,-417.63,0.00016709,2]
[351995840,1738871447339,-638.76,0.00016846,2]
[351995842,1738871447349,-5656.6156803,0.00016885,2]
[351995844,1738871447365,-1901.3780107,0.00016885,2]
[351995846,1738871447376,-337.80927,0.00016885,2]
[351995849,1738871447388,-384.50318454,0.00016885,2]
[351995852,1738871447409,-520.48078098,0.00016885,2]
[351995854,1738871447419,-474.67135587,0.00016985,2]
[351995857,1738871447441,-513.90158581,0.00016985,2]
[351995859,1738871447452,-345.26140105,0.00016985,2]
[351995861,1738871447463,-4356.0,0.00016985,2]
[351995863,1738871447473,-5457.52216298,0.00016985,2]
[351995865,1738871447484,-350.33119994,0.00016985,2]
[351995867,1738871447493,-535.96,0.00016985,2]
[351995869,1738871447502,-500.0,0.00016985,2]
[351995870,1738871447510,-500.0,0.00016985,2]
[351995871,1738871447520,-500.0,0.00016985,2]
[351995872,1738871447529,-500.0,0.00016985,2]
[351995873,1738871447541,-500.0,0.00016985,2]
[351995874,1738871447550,-500.0,0.00016985,2]
[351995875,1738871447560,-500.0,0.00016985,2]
[351995876,1738871447570,-500.0,0.00016985,2]
[351995877,1738871447580,-500.0,0.00016985,2]
[351995878,1738871447591,-500.0,0.00016985,2]
[351995879,1738871447601,-500.0,0.00016985,2]
[351995880,1738871447611,-838.85,0.00016985,2]
[351995881,1738871447622,-388.85,0.00016985,2]
[351995882,1738871447633,-500.0,0.00016985,2]
[351995883,1738871447643,-500.0,0.00016985,2]
[351995884,1738871447653,-500.0,0.00016985,2]
[351995885,1738871447663,-500.0,0.00016985,2]
[351995886,1738871447674,-500.0,0.00016985,2]
[351995887,1738871447684,-500.0,0.00016985,2]
[351995888,1738871447694,-500.0,0.00016985,2]
[351995889,1738871447705,-559.3,0.00016985,2]
[351995890,1738871447716,-500.0,0.00016985,2]
[351995891,1738871447727,-576.93,0.00016985,2]
[351995893,1738871447738,-500.0,0.00016985,2]
[351995894,1738871447749,-500.0,0.00016985,2]
[351995896,1738871447759,-500.0,0.00016985,2]
[351995898,1738871447769,-500.0,0.00016985,2]
[351995900,1738871447781,-527.07,0.00016985,2]
[351995902,1738871447793,-500.0,0.00016985,2]
[351995904,1738871447804,-500.0,0.00016985,2]
[351995906,1738871447815,-500.0,0.00016985,2]
[351995908,1738871447825,-500.0,0.00016985,2]
[351995910,1738871447835,-500.0,0.00016985,2]
[351995912,1738871447846,-500.0,0.00016985,2]
[351995914,1738871447857,-405.5730641,0.00016985,2]
[351995945,1738871448154,-94.4269359,0.00016985,2]
[351995947,1738871448164,-500.0,0.00016985,2]
[351995949,1738871448176,-500.0,0.00016985,2]
[351995951,1738871448188,-552.63,0.00016985,2]
[351995953,1738871448199,-500.0,0.00016985,2]
[351995955,1738871448213,-551.79,0.00016985,2]
[351995958,1738871448227,-500.0,0.00016985,2]
[351995960,1738871448239,-500.0,0.00016985,2]
[351995962,1738871448250,-801.54,0.00016985,2]
[351995964,1738871448261,-500.0,0.00016985,2]
[351995966,1738871448271,-548.72,0.00016985,2]
[351995968,1738871448285,-500.0,0.00016985,2]
[351995970,1738871448298,-860.4,0.00016985,2]
[351995972,1738871448310,-1352.0,0.00016985,2]
[351995974,1738871448322,-500.0,0.00016985,2]
[351995976,1738871448333,-490.70390183,0.00016985,2]
[351995978,1738871448344,-196.51896925,0.00016985,2]
[351995980,1738871448357,-303.48103075,0.00016985,2]
[351995982,1738871448368,-230.11392925,0.00016985,2]
[351995985,1738871448382,-355.19607075,0.00016985,2]
[351995986,1738871448393,-500.0,0.00016985,2]
[351995988,1738871448404,-500.0,0.00016985,2]
[351995990,1738871448414,-1284.07,0.00016985,2]
[351995992,1738871448425,-1051.09745394,0.00016985,2]
[351996000,1738871448503,-56.26254606,0.00016985,2]
[351996002,1738871448514,-403.32731498,0.00016985,2]
[351996006,1738871448541,-96.67268502,0.00016985,2]
[351996008,1738871448551,-754.6,0.00016985,2]
[351996010,1738871448562,-500.0,0.00016985,2]
[351996012,1738871448572,-774.08,0.00016985,2]
[351996014,1738871448583,-500.0,0.00016985,2]
[351996016,1738871448595,-564.41,0.00016985,2]
[351996018,1738871448606,-500.0,0.00016985,2]
[351996020,1738871448616,-1179.66,0.00016985,2]
[351996022,1738871448627,-128.57731498,0.00016985,2]
[351996678,1738871529128,151.48325,9.881e-05,2]
[351996679,1738871575120,309.5,8.973e-05,2]
[351996680,1738871576973,152.491537,9.881e-05,2]
[351996681,1738871633886,152.491537,9.881e-05,2]
[351996682,1738871755403,152.491537,9.881e-05,2]
[351996683,1738871768788,151.48325,9.881e-05,2]
[351996684,1738871814562,1671.20352305,0.0002,120]
[351996685,1738871873918,204.110967,9.881e-05,2]
[351996686,1738871934518,152.491537,9.881e-05,2]
[351996687,1738872068223,199.169216,9.881e-05,2]
[351996688,1738872305017,179.88,9.788e-05,2]
[351996706,1738872632276,-155.96,0.00010137,2]
[351996707,1738872632285,-179.89,0.00010876,2]
[351996708,1738872632295,-29.81549,0.00013512,2]
[351996709,1738872632328,-715.98108598,0.00013512,2]
[351996710,1738872632341,-110.61342402,0.00013512,2]
[351996711,1738872632350,-369.38,0.00015106,2]
[351996712,1738872632359,-644.65,0.00015107,2]
[351996713,1738872632368,-824.7564747,0.00015119,3]
[351996714,1738872632377,-327.48,0.00015225,2]
[351996715,1738872632387,-250.0,0.00015249,2]
[351996716,1738872632396,-150.0,0.00015286,2]
[351996717,1738872632405,-1000.0,0.0001529,2]
[351996718,1738872632414,-372.17,0.00015316,2]
[351996719,1738872632423,-677.05,0.00015385,2]
[351996720,1738872632434,-224.85,0.0001561,2]
[351996721,1738872632443,-369.66,0.00015711,2]
[351996722,1738872632454,-856.41,0.00015776,2]
[351996723,1738872632463,-368.57,0.00016139,2]
[351996724,1738872632473,-370.84,0.00016139,2]
[351996725,1738872632483,-369.83,0.00016139,2]
[351996726,1738872632492,-375.8,0.00016139,2]
[351996727,1738872632502,-382.31,0.00016139,2]
[351996728,1738872632511,-1001.0,0.000164,2]
[351996729,1738872632520,-6105.49237926,0.00016472,2]
[351996730,1738872632530,-4276.27305002,0.00016474,2]
[351996731,1738872632539,-1000.0,0.000165,2]
[351996732,1738872632549,-1000.0,0.000165,2]
[351996733,1738872632561,-1000.0,0.000165,2]
[351996734,1738872632570,-1000.0,0.000165,2]
[351996735,1738872632579,-1000.0,0.000165,2]
[351996736,1738872632589,-1000.0,0.000165,3]
[351996737,1738872632599,-1000.0,0.000165,3]
[351996738,1738872632608,-1309.0,0.000165,2]
[351996739,1738872632618,-1000.0,0.000165,2]
[351996740,1738872632629,-1000.0,0.000165,2]
[351996741,1738872632638,-208.5315248,0.00016531,2]
[351996742,1738872632647,-500.0,0.00016572,2]
[351996744,1738872632656,-500.0,0.00016572,2]
[351996746,1738872632666,-500.0,0.00016572,2]
[351996747,1738872632675,-500.0,0.00016572,2]
[351996748,1738872632684,-500.0,0.00016572,2]
[351996749,1738872632694,-500.0,0.00016572,2]
[351996750,1738872632703,-500.0,0.00016572,2]
[351996751,1738872632712,-500.0,0.00016572,2]
[351996752,1738872632721,-500.0,0.00016572,2]
[351996753,1738872632731,-500.0,0.00016572,2]
[351996754,1738872632740,-500.0,0.00016572,2]
[351996755,1738872632749,-500.0,0.00016572,2]
[351996757,1738872632758,-500.0,0.00016572,2]
[351996759,1738872632768,-500.0,0.00016572,2]
[351996761,1738872632777,-500.0,0.00016572,2]
[351996763,1738872632786,-500.0,0.00016572,2]
[351996765,1738872632796,-500.0,0.00016572,2]
[351996767,1738872632805,-500.0,0.00016572,2]
[351996769,1738872632813,-500.0,0.00016572,2]
[351996770,1738872632822,-500.0,0.00016572,2]
[351996772,1738872632831,-500.0,0.00016572,2]
[351996774,1738872632841,-500.0,0.00016572,2]
[351996776,1738872632850,-500.0,0.00016572,2]
[351996778,1738872632859,-500.0,0.00016572,2]
[351996780,1738872632868,-500.0,0.00016572,2]
[351996782,1738872632877,-500.0,0.00016572,2]
[351996784,1738872632886,-500.0,0.00016572,2]
[351996786,1738872632895,-500.0,0.00016572,2]
[351996788,1738872632904,-500.0,0.00016572,2]
[351996790,1738872632913,-500.0,0.00016572,2]
[351996792,1738872632922,-806.74,0.00016572,2]
[351996794,1738872632932,-500.0,0.00016572,2]
[351996796,1738872632940,-505.78,0.00016572,2]
[351996798,1738872632950,-500.0,0.00016572,2]
[351996800,1738872632959,-500.0,0.00016572,2]
[351996802,1738872632969,-500.0,0.00016572,2]
[351996804,1738872632978,-500.0,0.00016572,2]
[351996806,1738872632987,-500.0,0.00016572,2]
[351996808,1738872632996,-500.0,0.00016572,2]
[351996809,1738872633005,-500.0,0.00016572,2]
[351996812,1738872633017,-266.43992646,0.00016572,2]
[351996813,1738872633027,-500.0,0.00016572,2]
[351996815,1738872633037,-500.0,0.00016572,2]
[351996817,1738872633046,-631.23,0.00016572,2]
[351996819,1738872633055,-500.0,0.00016572,2]
[351996820,1738872633065,-701.51,0.00016572,2]
[351996821,1738872633075,-500.0,0.00016572,2]
[351996822,1738872633085,-558.98,0.00016572,2]
[351996823,1738872633094,-500.0,0.00016572,2]
[351996824,1738872633104,-1184.06,0.00016572,2]
[351996825,1738872633114,-1171.86,0.00016572,2]
[351996826,1738872633126,-500.0,0.00016572,2]
[351996827,1738872633139,-938.96,0.00016572,2]
[351996828,1738872633150,-1474.66,0.00016572,2]
[351996829,1738872633161,-500.0,0.00016572,2]
[351996830,1738872633174,-500.0,0.00016572,2]
[351996831,1738872633184,-934.05,0.00016572,2]
[351996832,1738872633194,-984.63,0.00016572,2]
[351996833,1738872633206,-320.56394293,0.00016573,2]
[351996834,1738872633216,-420.52086509,0.00016573,2]
[351996835,1738872633226,-500.0,0.00016573,2]
[351996836,1738872633237,-500.0,0.00016573,2]
[351996837,1738872633247,-500.0,0.00016573,2]
[351996838,1738872633256,-500.0,0.00016573,2]
[351996839,1738872633268,-500.0,0.00016573,2]
[351996840,1738872633278,-500.0,0.00016573,2]
[351996841,1738872633288,-500.0,0.00016573,2]
[351996842,1738872633298,-500.0,0.00016573,2]
[351996843,1738872633308,-500.0,0.00016573,2]
[351996844,1738872633317,-500.0,0.00016573,2]
[351996845,1738872633327,-500.0,0.00016573,2]
[351996846,1738872633336,-500.0,0.00016573,2]
[351996847,1738872633346,-500.0,0.00016573,2]
[351996848,1738872633356,-300.0,0.00016573,2]
[351996849,1738872633366,-545.4949786,0.00016573,2]
[351996850,1738872633375,-500.0,0.00016573,2]
[351996851,1738872633385,-500.0,0.00016573,2]
[351996852,1738872633395,-500.0,0.00016573,2]
[351996853,1738872633404,-500.0,0.00016573,2]
[351996854,1738872633414,-500.0,0.00016573,2]
[351996855,1738872633424,-500.0,0.00016573,2]
[351996856,1738872633435,-500.0,0.00016573,2]
[351996857,1738872633444,-500.0,0.00016573,2]
[351996858,1738872633456,-503.45778951,0.00016573,2]
[351996859,1738872633465,-396.42619508,0.00016573,2]
[351996860,1738872633475,-500.0,0.00016573,2]
[351996861,1738872633485,-500.68995689,0.00016573,2]
[351996862,1738872633494,-500.0,0.00016573,2]
[351996863,1738872633504,-500.0,0.00016573,2]
[351996864,1738872633514,-500.0,0.00016573,2]
[351996865,1738872633523,-500.0,0.00016573,2]
[351996866,1738872633533,-500.0,0.00016573,2]
[351996867,1738872633542,-500.0,0.00016573,2]
[351996868,1738872633554,-513.01,0.00016573,2]
[351996869,1738872633564,-500.0,0.00016573,2]
[351996870,1738872633573,-500.0,0.00016573,2]
[351996871,1738872633582,-500.0,0.00016573,2]
[351996872,1738872633592,-500.0,0.00016573,2]
[351996873,1738872633602,-500.0,0.00016573,2]
[351996874,1738872633611,-500.0,0.00016573,2]
[351996875,1738872633621,-500.0,0.00016573,2]
[351996876,1738872633632,-500.0,0.00016573,2]
[351996877,1738872633641,-500.0,0.00016573,2]
[351996878,1738872633651,-500.0,0.00016573,2]
[351996879,1738872633661,-500.0,0.00016573,2]
[351996880,1738872633670,-500.0,0.00016573,2]
[351996881,1738872633680,-500.0,0.00016573,2]
[351996882,1738872633689,-767.44,0.00016573,2]
[351996883,1738872633699,-500.0,0.00016573,2]
[351996884,1738872633709,-500.0,0.00016573,2]
[351996885,1738872633719,-500.0,0.00016573,2]
[351996886,1738872633729,-500.0,0.00016573,2]
[351996887,1738872633738,-500.0,0.00016573,2]
[351996888,1738872633748,-500.0,0.00016573,2]
[351996889,1738872633758,-500.0,0.00016573,2]
[351996890,1738872633767,-500.0,0.00016573,2]
[351996891,1738872633777,-500.0,0.00016573,2]
[351996892,1738872633787,-500.0,0.00016573,2]
[351996893,1738872633797,-500.0,0.00016573,2]
[351996894,1738872633806,-500.0,0.00016573,2]
[351996895,1738872633816,-500.0,0.00016573,2]
[351996896,1738872633826,-500.0,0.00016573,2]
[351996897,1738872633836,-500.0,0.00016573,2]
[351996898,1738872633845,-500.0,0.00016573,2]
[351996899,1738872633855,-501.6,0.00016573,2]
[351996900,1738872633865,-500.0,0.00016573,2]
[351996901,1738872633875,-502.61424411,0.00016573,2]
[351996902,1738872633884,-500.0,0.00016573,2]
[351996903,1738872633893,-500.0,0.00016573,2]
[351996904,1738872633903,-500.0,0.00016573,2]
[351996905,1738872633912,-500.0,0.00016573,2]
[351996906,1738872633922,-500.0,0.00016573,2]
[351996907,1738872633932,-500.0,0.00016573,2]
[351996908,1738872633941,-500.0,0.00016573,2]
[351996909,1738872633951,-500.0,0.00016573,2]
[351996910,1738872633962,-500.0,0.00016573,2]
[351996911,1738872633972,-500.0,0.00016573,2]
[351996912,1738872633982,-500.0,0.00016573,2]
[351996913,1738872633992,-500.0,0.00016573,2]
[351996914,1738872634001,-500.0,0.00016573,2]
[351996915,1738872634011,-500.0,0.00016573,2]
[351996916,1738872634021,-500.0,0.00016573,2]
[351996917,1738872634030,-500.0,0.00016573,2]
[351996918,1738872634041,-500.0,0.00016573,2]
[351996919,1738872634051,-35.86390701,0.00016573,2]
[351996920,1738872634067,-459.12707914,0.00016573,2]
[351996921,1738872634084,-5.00901385,0.00016573,2]
[351996922,1738872634094,-500.0,0.00016573,2]
[351996923,1738872634104,-500.0,0.00016573,2]
[351996924,1738872634114,-91.69649015,0.00016573,2]
[351996925,1738872634127,-408.30350985,0.00016573,2]
[351996926,1738872634137,-500.0,0.00016573,2]
[351996927,1738872634147,-500.0,0.00016573,2]
[351996928,1738872634157,-500.0,0.00016573,2]
[351996929,1738872634167,-500.0,0.00016573,2]
[351996930,1738872634178,-488.48310354,0.00016573,2]
[351996931,1738872634188,-500.0,0.00016573,2]
[351996932,1738872634198,-500.0,0.00016573,2]
[351996933,1738872634209,-500.0,0.00016573,2]
[351996934,1738872634219,-642.18,0.00016573,2]
[351996935,1738872634231,-500.22009326,0.00016573,2]
[351996936,1738872634241,-500.0,0.00016573,2]
[351996937,1738872634251,-500.24775288,0.00016573,2]
[351996938,1738872634261,-500.0,0.00016573,2]
[351996939,1738872634271,-500.0,0.00016573,2]
[351996940,1738872634282,-500.0,0.00016573,2]
[351996941,1738872634292,-500.0,0.00016573,2]
[351996942,1738872634302,-500.0,0.00016573,2]
[351996943,1738872634311,-500.0,0.00016573,2]
[351996944,1738872634321,-500.0,0.00016573,2]
[351996945,1738872634331,-535.77958085,0.00016573,2]
[351996946,1738872634342,-500.0,0.00016573,2]
[351996947,1738872634352,-500.0,0.00016573,2]
[351996948,1738872634362,-500.0,0.00016573,2]
[351996949,1738872634373,-500.0,0.00016573,2]
[351996950,1738872634383,-500.8168162,0.00016573,2]
[351996951,1738872634393,-500.0,0.00016573,2]
[351996952,1738872634403,-500.0,0.00016573,2]
[351996953,1738872634413,-500.0,0.00016573,2]
[351996954,1738872634423,-500.0,0.00016573,2]
[351996955,1738872634433,-500.0,0.00016573,2]
[351996956,1738872634443,-500.0,0.00016573,2]
[351996957,1738872634453,-500.0,0.00016573,2]
[351996958,1738872634463,-500.0,0.00016573,2]
[351996959,1738872634472,-500.0,0.00016573,2]
[351996960,1738872634481,-500.0,0.00016573,2]
[351996961,1738872634490,-639.21,0.00016573,2]
[351996962,1738872634499,-500.0,0.00016573,2]
[351996963,1738872634508,-501.21852645,0.00016573,2]
[351996964,1738872634519,-503.49358725,0.00016573,2]
[351996965,1738872634529,-500.0,0.00016573,2]
[351996966,1738872634539,-510.24072333,0.00016573,2]
[351996967,1738872634551,-500.0,0.00016573,2]
[351996968,1738872634566,-500.17579477,0.00016573,2]
[351996969,1738872634576,-503.66845745,0.00016573,2]
[351996970,1738872634586,-325.90053099,0.00016573,2]
[351996971,1738872634596,-500.0,0.00016573,2]
[351996972,1738872634606,-500.0,0.00016573,2]
[351996973,1738872634615,-501.88890646,0.00016573,2]
[351996974,1738872634624,-502.22115506,0.00016573,2]
[351996975,1738872634635,-500.0,0.00016573,2]
[351996976,1738872634645,-500.0,0.00016573,2]
[351996977,1738872634655,-502.14297666,0.00016573,2]
[351996978,1738872634665,-181.12463547,0.00016573,2]
[351996979,1738872634675,-506.62569565,0.00016573,2]
[351996980,1738872634684,-500.0,0.00016573,2]
[351996981,1738872634694,-500.0,0.00016573,2]
[351996982,1738872634706,-356.17,0.00016573,2]
[351996983,1738872634716,-500.0,0.00016573,2]
[351996984,1738872634726,-500.0,0.00016573,2]
[351996985,1738872634737,-500.0,0.00016573,2]
[351996986,1738872634746,-562.41376018,0.00016573,2]
[351996987,1738872634756,-500.0,0.00016573,2]
[351996988,1738872634766,-500.0,0.00016573,2]
[351996989,1738872634776,-500.0,0.00016573,2]